[Event "Titled Tuesday Blitz May 4 2021"]
[White "Fernandez, Michael"]
[Black "Volkov, Maksim"]
[WhiteFideId "5803560"]
[BlackFideId "54123070"]
[WhiteElo "2110"]
[BlackElo "2113"]
[Result "1-0"]
[Round "03"]
[TimeControl "180+1"]
[Date "2021.05.04"]
[WhiteClock "0:00:21"]
[BlackClock "0:00:08"]

1. e4 {[%clk 0:03:00]}  c5 {[%clk 0:02:59]} 2. Nf3 {[%clk 0:02:58]}  e6 {[%clk 0:02:58]} 3. b4 {[%clk 0:02:58]}  cxb4 {[%clk 0:02:57]} 4. d4 {[%clk 0:02:52]}  d5 {[%clk 0:02:57]} 5. e5 {[%clk 0:02:51]}  Nc6 {[%clk 0:02:57]} 6. a3 {[%clk 0:02:50]}  Nh6 {[%clk 0:02:54]} 7. axb4 {[%clk 0:02:42]}  Bxb4+ {[%clk 0:02:53]} 8. c3 {[%clk 0:02:40]}  Be7 {[%clk 0:02:53]} 9. Bd3 {[%clk 0:02:38]}  Nf5 {[%clk 0:02:52]} 10. O-O {[%clk 0:02:30]}  h5 {[%clk 0:02:50]} 11. Re1 {[%clk 0:02:26]}  Bd7 {[%clk 0:02:48]} 12. Nbd2 {[%clk 0:02:22]}  h4 {[%clk 0:02:44]} 13. h3 {[%clk 0:02:22]}  Rc8 {[%clk 0:02:37]} 14. Nf1 {[%clk 0:02:18]}  a6 {[%clk 0:02:36]} 15. Ne3 {[%clk 0:02:17]}  Nxe3 {[%clk 0:02:35]} 16. Bxe3 {[%clk 0:02:18]}  Na5 {[%clk 0:02:35]} 17. Qb1 {[%clk 0:01:46]}  b5 {[%clk 0:02:12]} 18. Rc1 {[%clk 0:01:44]}  Qb6 {[%clk 0:02:10]} 19. Nd2 {[%clk 0:01:41]}  O-O {[%clk 0:02:05]} 20. Nb3 {[%clk 0:01:41]}  Nc4 {[%clk 0:02:04]} 21. Nd2 {[%clk 0:01:37]}  a5 {[%clk 0:01:52]} 22. Nxc4 {[%clk 0:01:33]}  dxc4 {[%clk 0:01:52]} 23. Be4 {[%clk 0:01:17]}  b4 {[%clk 0:01:50]} 24. d5 {[%clk 0:01:13]}  Bc5 {[%clk 0:01:45]} 25. Bxc5 {[%clk 0:01:11]}  Qxc5 {[%clk 0:01:43]} 26. Bh7+ {[%clk 0:00:59]}  Kh8 {[%clk 0:01:43]} 27. Qe4 {[%clk 0:01:00]}  g5 {[%clk 0:01:33]} 28. dxe6 {[%clk 0:00:52]}  Bxe6 {[%clk 0:01:29]} 29. Bf5 {[%clk 0:00:45]}  Rfe8 {[%clk 0:01:04]} 30. Qg4 {[%clk 0:00:29]}  Qxe5 {[%clk 0:01:02]} 31. Qh5+ {[%clk 0:00:27]}  Kg8 {[%clk 0:00:52]} 32. Qxg5+ {[%clk 0:00:25]}  Qg7 {[%clk 0:00:51]} 33. Qxg7+ {[%clk 0:00:23]}  Kxg7 {[%clk 0:00:51]} 34. Bxe6 {[%clk 0:00:22]}  Rxe6 {[%clk 0:00:49]} 35. Rxa5 {[%clk 0:00:23]}  b3 {[%clk 0:00:49]} 36. Rb5 {[%clk 0:00:21]}  Re2 {[%clk 0:00:46]} 37. Kf1 {[%clk 0:00:20]}  Rce8 {[%clk 0:00:44]} 38. Rb4 {[%clk 0:00:19]}  Kf6 {[%clk 0:00:37]} 39. Rb1 {[%clk 0:00:19]}  R2e4 {[%clk 0:00:35]} 40. f3 {[%clk 0:00:19]}  Re2 {[%clk 0:00:16]} 41. Rxc4 {[%clk 0:00:18]}  Kg5 {[%clk 0:00:17]} 42. Rg4+ {[%clk 0:00:15]}  Kh5 {[%clk 0:00:16]} 43. Re4 {[%clk 0:00:15]}  R8xe4 {[%clk 0:00:15]} 44. fxe4 {[%clk 0:00:16]}  Rxe4 {[%clk 0:00:15]} 45. Rxb3 {[%clk 0:00:16]}  f5 {[%clk 0:00:14]} 46. Kf2 {[%clk 0:00:15]}  Kg5 {[%clk 0:00:14]} 47. Rb4 {[%clk 0:00:15]}  Re5 {[%clk 0:00:14]} 48. Rb2 {[%clk 0:00:15]}  Rc5 {[%clk 0:00:13]} 49. Rc2 {[%clk 0:00:15]}  Rc4 {[%clk 0:00:13]} 50. Ke3 {[%clk 0:00:15]}  Kf6 {[%clk 0:00:12]} 51. Kd3 {[%clk 0:00:16]}  Rc8 {[%clk 0:00:11]} 52. c4 {[%clk 0:00:16]}  Ke5 {[%clk 0:00:12]} 53. Re2+ {[%clk 0:00:16]}  Kf4 {[%clk 0:00:12]} 54. Kd4 {[%clk 0:00:17]}  Kg3 {[%clk 0:00:11]} 55. c5 {[%clk 0:00:16]}  f4 {[%clk 0:00:11]} 56. Kd5 {[%clk 0:00:16]}  f3 {[%clk 0:00:11]} 57. gxf3 {[%clk 0:00:17]}  Kxf3 {[%clk 0:00:11]} 58. Rc2 {[%clk 0:00:16]}  Kg3 {[%clk 0:00:11]} 59. Rc3+ {[%clk 0:00:17]}  Kh2 {[%clk 0:00:11]} 60. c6 {[%clk 0:00:18]}  Rg8 {[%clk 0:00:11]} 61. c7 {[%clk 0:00:18]}  Rc8 {[%clk 0:00:09]} 62. Kd6 {[%clk 0:00:18]}  Rh8 {[%clk 0:00:08]} 63. Kd7 {[%clk 0:00:18]}  Rh7+ {[%clk 0:00:09]} 64. Kc6 {[%clk 0:00:19]}  Rh8 {[%clk 0:00:07]} 65. Kb7 {[%clk 0:00:19]}  Rh7 {[%clk 0:00:08]} 66. Kb8 {[%clk 0:00:19]}  Rh8+ {[%clk 0:00:08]} 67. c8=Q {[%clk 0:00:20]}  Rxc8+ {[%clk 0:00:08]} 68. Kxc8 {[%clk 0:00:21]} 1-0


[Site "https://www.chess.com"]

[Event "Titled Tuesday Blitz May 4 2021"]
[White "Fier, Alexandr"]
[Black "Injac, Teodora"]
[WhiteFideId "2107139"]
[BlackFideId "932400"]
[WhiteElo "2569"]
[BlackElo "2308"]
[Result "1-0"]
[Round "03"]
[TimeControl "180+1"]
[Date "2021.05.04"]
[WhiteClock "0:00:45"]
[BlackClock "0:00:07"]

1. d4 {[%clk 0:03:00]}  Nf6 {[%clk 0:02:59]} 2. Bg5 {[%clk 0:03:00]}  e6 {[%clk 0:02:57]} 3. e4 {[%clk 0:02:59]}  h6 {[%clk 0:02:57]} 4. Bxf6 {[%clk 0:02:59]}  Qxf6 {[%clk 0:02:57]} 5. c3 {[%clk 0:03:00]}  d6 {[%clk 0:02:56]} 6. Bd3 {[%clk 0:03:00]}  g6 {[%clk 0:02:47]} 7. Ne2 {[%clk 0:03:00]}  Bg7 {[%clk 0:02:47]} 8. O-O {[%clk 0:03:00]}  Qe7 {[%clk 0:02:39]} 9. f4 {[%clk 0:03:01]}  e5 {[%clk 0:02:39]} 10. f5 {[%clk 0:03:01]}  O-O {[%clk 0:02:38]} 11. Qb3 {[%clk 0:02:57]}  Kh7 {[%clk 0:02:35]} 12. fxg6+ {[%clk 0:02:55]}  fxg6 {[%clk 0:02:34]} 13. Rxf8 {[%clk 0:02:56]}  Qxf8 {[%clk 0:02:32]} 14. Nd2 {[%clk 0:02:57]}  Nd7 {[%clk 0:02:03]} 15. Rf1 {[%clk 0:02:56]}  Nf6 {[%clk 0:02:04]} 16. Nc4 {[%clk 0:02:52]}  Qe7 {[%clk 0:02:01]} 17. Ne3 {[%clk 0:02:49]}  Rb8 {[%clk 0:01:51]} 18. Qa3 {[%clk 0:02:49]}  a6 {[%clk 0:01:46]} 19. Nc4 {[%clk 0:02:43]}  b5 {[%clk 0:01:20]} 20. dxe5 {[%clk 0:01:57]}  bxc4 {[%clk 0:01:20]} 21. exf6 {[%clk 0:01:57]}  Bxf6 {[%clk 0:01:21]} 22. Bxc4 {[%clk 0:01:56]}  Bb7 {[%clk 0:00:54]} 23. Nf4 {[%clk 0:01:42]}  Qxe4 {[%clk 0:00:46]} 24. Bf7 {[%clk 0:01:34]}  Qe3+ {[%clk 0:00:39]} 25. Kh1 {[%clk 0:01:34]}  Be4 {[%clk 0:00:34]} 26. Qa5 {[%clk 0:01:12]}  Rxb2 {[%clk 0:00:28]} 27. Qxc7 {[%clk 0:01:10]}  Bg7 {[%clk 0:00:15]} 28. Qxd6 {[%clk 0:00:48]}  Qd2 {[%clk 0:00:08]} 29. Bxg6+ {[%clk 0:00:47]}  Bxg6 {[%clk 0:00:07]} 30. Qxg6+ {[%clk 0:00:47]}  Kh8 {[%clk 0:00:07]} 31. Ne6 {[%clk 0:00:45]} 1-0


[Site "https://www.chess.com"]

[Event "Titled Tuesday Blitz May 4 2021"]
[White "Funderburg, John T"]
[Black "Pasti, Aron"]
[WhiteFideId "2004992"]
[BlackFideId "785857"]
[WhiteElo "2060"]
[BlackElo "2082"]
[Result "0-1"]
[Round "03"]
[TimeControl "180+1"]
[Date "2021.05.04"]
[WhiteClock "0:00:02"]
[BlackClock "0:01:03"]

1. e4 {[%clk 0:03:00]}  e5 {[%clk 0:02:59]} 2. Nf3 {[%clk 0:02:59]}  Nc6 {[%clk 0:03:00]} 3. Bc4 {[%clk 0:02:57]}  Nf6 {[%clk 0:03:00]} 4. d4 {[%clk 0:02:51]}  exd4 {[%clk 0:02:59]} 5. e5 {[%clk 0:02:51]}  d5 {[%clk 0:02:56]} 6. Bb5 {[%clk 0:02:51]}  Ne4 {[%clk 0:02:55]} 7. Nxd4 {[%clk 0:02:50]}  Bc5 {[%clk 0:02:55]} 8. Be3 {[%clk 0:02:48]}  Bd7 {[%clk 0:02:52]} 9. Bxc6 {[%clk 0:02:48]}  bxc6 {[%clk 0:02:48]} 10. O-O {[%clk 0:02:48]}  O-O {[%clk 0:02:46]} 11. f3 {[%clk 0:02:46]}  Ng5 {[%clk 0:02:43]} 12. Qd2 {[%clk 0:02:20]}  Ne6 {[%clk 0:02:36]} 13. c3 {[%clk 0:02:20]}  Nxd4 {[%clk 0:02:34]} 14. cxd4 {[%clk 0:02:20]}  Bb6 {[%clk 0:02:34]} 15. Nc3 {[%clk 0:02:17]}  Re8 {[%clk 0:02:34]} 16. f4 {[%clk 0:02:16]}  Qe7 {[%clk 0:02:34]} 17. Rae1 {[%clk 0:02:08]}  Bf5 {[%clk 0:02:34]} 18. Qd1 {[%clk 0:01:49]}  Rad8 {[%clk 0:02:33]} 19. g4 {[%clk 0:01:35]}  Be4 {[%clk 0:02:28]} 20. f5 {[%clk 0:01:33]}  g6 {[%clk 0:02:16]} 21. f6 {[%clk 0:01:30]}  Qe6 {[%clk 0:02:16]} 22. h3 {[%clk 0:00:52]}  c5 {[%clk 0:02:06]} 23. dxc5 {[%clk 0:00:13]}  Qxe5 {[%clk 0:02:04]} 24. Nxe4 {[%clk 0:00:03]}  dxe4 {[%clk 0:02:01]} 25. Qc2 {[%clk 0:00:03]}  Ba5 {[%clk 0:01:42]} 26. Qg2 {[%clk 0:00:03]}  Bxe1 {[%clk 0:01:40]} 27. Rxe1 {[%clk 0:00:04]}  Qxf6 {[%clk 0:01:40]} 28. Rf1 {[%clk 0:00:03]}  Qe6 {[%clk 0:01:38]} 29. Qf2 {[%clk 0:00:03]}  Rd3 {[%clk 0:01:25]} 30. Qf4 {[%clk 0:00:03]}  Re7 {[%clk 0:01:12]} 31. b4 {[%clk 0:00:03]}  Qe5 {[%clk 0:01:11]} 32. Qf2 {[%clk 0:00:03]}  Qc3 {[%clk 0:01:03]} 33. Qe2 {[%clk 0:00:02]}  Rxe3 {[%clk 0:01:03]} 0-1


[Site "https://www.chess.com"]

[Event "Titled Tuesday Blitz May 4 2021"]
[White "Gandhi, Shyam"]
[Black "Bolanos, Fernando"]
[WhiteFideId "2052008"]
[BlackFideId "3304094"]
[WhiteElo "1951"]
[BlackElo "1998"]
[Result "0-1"]
[Round "03"]
[TimeControl "180+1"]
[Date "2021.05.04"]
[WhiteClock "0:00:35"]
[BlackClock "0:00:07"]

1. c4 {[%clk 0:03:00]}  c5 {[%clk 0:02:59]} 2. Nc3 {[%clk 0:03:00]}  Nc6 {[%clk 0:02:59]} 3. g3 {[%clk 0:03:00]}  e6 {[%clk 0:02:57]} 4. Bg2 {[%clk 0:03:00]}  Nge7 {[%clk 0:02:57]} 5. e4 {[%clk 0:03:00]}  g6 {[%clk 0:02:55]} 6. Nge2 {[%clk 0:03:00]}  Bg7 {[%clk 0:02:54]} 7. d3 {[%clk 0:03:00]}  O-O {[%clk 0:02:54]} 8. O-O {[%clk 0:03:00]}  d6 {[%clk 0:02:54]} 9. Be3 {[%clk 0:02:58]}  a6 {[%clk 0:02:54]} 10. Qd2 {[%clk 0:02:58]}  Rb8 {[%clk 0:02:53]} 11. a4 {[%clk 0:02:58]}  Bd7 {[%clk 0:02:46]} 12. d4 {[%clk 0:02:58]}  b6 {[%clk 0:02:42]} 13. Rfd1 {[%clk 0:02:41]}  Na5 {[%clk 0:02:27]} 14. Qd3 {[%clk 0:02:23]}  Nc8 {[%clk 0:02:00]} 15. dxc5 {[%clk 0:02:20]}  bxc5 {[%clk 0:01:59]} 16. Bxc5 {[%clk 0:02:05]}  dxc5 {[%clk 0:01:53]} 17. Qxd7 {[%clk 0:02:04]}  Qxd7 {[%clk 0:01:53]} 18. Rxd7 {[%clk 0:02:04]}  Rxb2 {[%clk 0:01:35]} 19. Rc1 {[%clk 0:01:58]}  Nxc4 {[%clk 0:01:20]} 20. Rc7 {[%clk 0:01:57]}  Ne5 {[%clk 0:01:03]} 21. Rb1 {[%clk 0:01:44]}  Rxb1+ {[%clk 0:00:34]} 22. Nxb1 {[%clk 0:01:45]}  Nd3 {[%clk 0:00:34]} 23. Nf4 {[%clk 0:01:35]}  Be5 {[%clk 0:00:30]} 24. Rxc8 {[%clk 0:01:32]}  Rxc8 {[%clk 0:00:25]} 25. Nxd3 {[%clk 0:01:32]}  Bd4 {[%clk 0:00:25]} 26. Bf1 {[%clk 0:01:27]}  c4 {[%clk 0:00:26]} 27. Nb4 {[%clk 0:01:27]}  a5 {[%clk 0:00:24]} 28. Nc2 {[%clk 0:01:24]}  e5 {[%clk 0:00:22]} 29. Nd2 {[%clk 0:01:22]}  c3 {[%clk 0:00:21]} 30. Nc4 {[%clk 0:01:22]}  Kg7 {[%clk 0:00:16]} 31. Nxa5 {[%clk 0:01:21]}  Ra8 {[%clk 0:00:17]} 32. Nc4 {[%clk 0:01:05]}  Rxa4 {[%clk 0:00:17]} 33. Bd3 {[%clk 0:01:06]}  f5 {[%clk 0:00:15]} 34. exf5 {[%clk 0:01:04]}  gxf5 {[%clk 0:00:15]} 35. Nd6 {[%clk 0:00:59]}  Kf6 {[%clk 0:00:07]} 36. Nxf5 {[%clk 0:00:56]}  Ba7 {[%clk 0:00:07]} 37. Kf1 {[%clk 0:00:52]}  e4 {[%clk 0:00:07]} 38. Bxe4 {[%clk 0:00:47]}  Rxe4 {[%clk 0:00:07]} 39. Nfe3 {[%clk 0:00:48]}  Bd4 {[%clk 0:00:05]} 40. Nd5+ {[%clk 0:00:46]}  Ke5 {[%clk 0:00:05]} 41. Nxd4 {[%clk 0:00:46]}  Kxd4 {[%clk 0:00:04]} 42. Nb4 {[%clk 0:00:44]}  Re8 {[%clk 0:00:04]} 43. Nc2+ {[%clk 0:00:44]}  Kd3 {[%clk 0:00:04]} 44. Nb4+ {[%clk 0:00:44]}  Kd2 {[%clk 0:00:04]} 45. Kg2 {[%clk 0:00:42]}  Rb8 {[%clk 0:00:05]} 46. Na2 {[%clk 0:00:39]}  c2 {[%clk 0:00:05]} 47. h4 {[%clk 0:00:38]}  Rb2 {[%clk 0:00:06]} 48. g4 {[%clk 0:00:35]}  Rxa2 {[%clk 0:00:06]} 49. g5 {[%clk 0:00:35]}  c1=Q {[%clk 0:00:05]} 50. Kg3 {[%clk 0:00:34]}  Qc6 {[%clk 0:00:06]} 51. f4 {[%clk 0:00:34]}  Ra3+ {[%clk 0:00:07]} 52. Kg4 {[%clk 0:00:34]}  Qe6+ {[%clk 0:00:07]} 53. Kh5 {[%clk 0:00:34]}  Qg6+ {[%clk 0:00:07]} 54. Kg4 {[%clk 0:00:35]}  h5# {[%clk 0:00:07]} 0-1


[Site "https://www.chess.com"]

[Event "Titled Tuesday Blitz May 4 2021"]
[White "Gazis, Efstathios"]
[Black "Estrada Nieto, Julian"]
[WhiteFideId "4200659"]
[BlackFideId "5101018"]
[WhiteElo "2225"]
[BlackElo "2270"]
[Result "0-1"]
[Round "03"]
[TimeControl "180+1"]
[Date "2021.05.04"]
[WhiteClock "0:01:53"]
[BlackClock "0:02:11"]

1. d4 {[%clk 0:03:00]}  d5 {[%clk 0:03:00]} 2. c4 {[%clk 0:03:00]}  dxc4 {[%clk 0:03:00]} 3. e3 {[%clk 0:02:59]}  Nf6 {[%clk 0:03:00]} 4. Bxc4 {[%clk 0:02:59]}  e6 {[%clk 0:03:01]} 5. Nf3 {[%clk 0:02:59]}  c5 {[%clk 0:03:01]} 6. O-O {[%clk 0:02:59]}  a6 {[%clk 0:03:01]} 7. a4 {[%clk 0:02:57]}  Nc6 {[%clk 0:03:01]} 8. Nc3 {[%clk 0:02:56]}  Be7 {[%clk 0:03:01]} 9. Qe2 {[%clk 0:02:45]}  cxd4 {[%clk 0:03:00]} 10. Rd1 {[%clk 0:02:44]}  e5 {[%clk 0:02:59]} 11. exd4 {[%clk 0:02:40]}  exd4 {[%clk 0:02:59]} 12. Be3 {[%clk 0:02:32]}  Bg4 {[%clk 0:02:58]} 13. h3 {[%clk 0:02:19]}  Bxf3 {[%clk 0:02:56]} 14. Qxf3 {[%clk 0:02:20]}  O-O {[%clk 0:02:52]} 15. Ne2 {[%clk 0:02:19]}  Ne5 {[%clk 0:02:36]} 16. Qg3 {[%clk 0:02:07]}  Nxc4 {[%clk 0:02:30]} 17. Rxd4 {[%clk 0:02:03]}  Bd6 {[%clk 0:02:15]} 18. Qh4 {[%clk 0:01:53]}  Nxe3 {[%clk 0:02:12]} 19. fxe3 {[%clk 0:01:53]}  Qe7 {[%clk 0:02:11]} 0-1


[Site "https://www.chess.com"]

[Event "Titled Tuesday Blitz May 4 2021"]
[White "Gershon, Alik"]
[Black "Voege, Tobias"]
[WhiteFideId "2802430"]
[BlackFideId "1270513"]
[WhiteElo "2281"]
[BlackElo "2283"]
[Result "0-1"]
[Round "03"]
[TimeControl "180+1"]
[Date "2021.05.04"]
[WhiteClock "0:00:01"]
[BlackClock "0:00:04"]

1. e4 {[%clk 0:02:57]}  c5 {[%clk 0:02:59]} 2. Nf3 {[%clk 0:02:56]}  Nc6 {[%clk 0:03:00]} 3. c3 {[%clk 0:02:55]}  Nf6 {[%clk 0:02:59]} 4. e5 {[%clk 0:02:54]}  Nd5 {[%clk 0:02:58]} 5. d4 {[%clk 0:02:53]}  cxd4 {[%clk 0:02:59]} 6. cxd4 {[%clk 0:02:52]}  d6 {[%clk 0:02:59]} 7. Bc4 {[%clk 0:02:47]}  Nb6 {[%clk 0:02:58]} 8. Bb5 {[%clk 0:02:47]}  d5 {[%clk 0:02:57]} 9. h3 {[%clk 0:02:42]}  Bf5 {[%clk 0:02:53]} 10. O-O {[%clk 0:02:42]}  e6 {[%clk 0:02:53]} 11. Nc3 {[%clk 0:02:42]}  Rc8 {[%clk 0:02:50]} 12. Bxc6+ {[%clk 0:02:35]}  bxc6 {[%clk 0:02:49]} 13. a3 {[%clk 0:02:32]}  c5 {[%clk 0:02:47]} 14. Be3 {[%clk 0:02:31]}  Nc4 {[%clk 0:02:35]} 15. dxc5 {[%clk 0:02:28]}  Nxe3 {[%clk 0:02:33]} 16. fxe3 {[%clk 0:02:28]}  Bxc5 {[%clk 0:02:33]} 17. Nd4 {[%clk 0:02:28]}  Bg6 {[%clk 0:02:33]} 18. Qg4 {[%clk 0:02:23]}  O-O {[%clk 0:02:30]} 19. Rf2 {[%clk 0:02:16]}  Be7 {[%clk 0:02:20]} 20. Nce2 {[%clk 0:02:07]}  Rc4 {[%clk 0:01:52]} 21. b3 {[%clk 0:01:58]}  Rc7 {[%clk 0:01:47]} 22. g3 {[%clk 0:01:55]}  Bg5 {[%clk 0:01:24]} 23. Nf4 {[%clk 0:01:40]}  Bh6 {[%clk 0:01:00]} 24. h4 {[%clk 0:01:38]}  Be4 {[%clk 0:00:56]} 25. Raf1 {[%clk 0:01:24]}  Re8 {[%clk 0:00:47]} 26. Nfxe6 {[%clk 0:00:51]}  fxe6 {[%clk 0:00:30]} 27. Nxe6 {[%clk 0:00:46]}  Qc8 {[%clk 0:00:14]} 28. Rf8+ {[%clk 0:00:28]}  Rxf8 {[%clk 0:00:14]} 29. Rxf8+ {[%clk 0:00:27]}  Qxf8 {[%clk 0:00:15]} 30. Nxf8 {[%clk 0:00:27]}  Bxe3+ {[%clk 0:00:15]} 31. Kf1 {[%clk 0:00:23]}  Kxf8 {[%clk 0:00:13]} 32. Qe6 {[%clk 0:00:21]}  Bc5 {[%clk 0:00:09]} 33. b4 {[%clk 0:00:17]}  Rf7+ {[%clk 0:00:06]} 34. Ke1 {[%clk 0:00:16]}  Bf2+ {[%clk 0:00:06]} 35. Ke2 {[%clk 0:00:15]}  Bxg3 {[%clk 0:00:05]} 36. Qc8+ {[%clk 0:00:15]}  Ke7 {[%clk 0:00:06]} 37. Qc7+ {[%clk 0:00:13]}  Ke6 {[%clk 0:00:04]} 38. Qd6+ {[%clk 0:00:13]}  Kf5 {[%clk 0:00:04]} 39. Ke3 {[%clk 0:00:08]}  Bf4+ {[%clk 0:00:03]} 40. Kd4 {[%clk 0:00:08]}  Bg3 {[%clk 0:00:02]} 41. Qb8 {[%clk 0:00:07]}  Bf2+ {[%clk 0:00:01]} 42. Kc3 {[%clk 0:00:06]}  Bg3 {[%clk 0:00:02]} 43. Kd4 {[%clk 0:00:05]}  Bf2+ {[%clk 0:00:01]} 44. Kc3 {[%clk 0:00:05]}  Bg3 {[%clk 0:00:02]} 45. Qc8+ {[%clk 0:00:05]}  Kg6 {[%clk 0:00:03]} 46. Kd4 {[%clk 0:00:05]}  Bxh4 {[%clk 0:00:02]} 47. e6 {[%clk 0:00:04]}  Bf2+ {[%clk 0:00:02]} 48. Ke5 {[%clk 0:00:03]}  Re7 {[%clk 0:00:03]} 49. Qd8 {[%clk 0:00:02]}  Bg3+ {[%clk 0:00:04]} 50. Kd4 {[%clk 0:00:01]}  Bh4 {[%clk 0:00:04]} 0-1


[Site "https://www.chess.com"]

[Event "Titled Tuesday Blitz May 4 2021"]
[White "Gonzalez, Francisco Silva"]
[Black "Erdogdu, Mert"]
[WhiteFideId "1512285"]
[BlackFideId "6301495"]
[WhiteElo "2159"]
[BlackElo "2485"]
[Result "1/2-1/2"]
[Round "03"]
[TimeControl "180+1"]
[Date "2021.05.04"]
[WhiteClock "0:00:19"]
[BlackClock "0:00:06"]

1. d4 {[%clk 0:03:00]}  Nf6 {[%clk 0:02:59]} 2. c4 {[%clk 0:03:01]}  g6 {[%clk 0:02:59]} 3. Nc3 {[%clk 0:03:01]}  d5 {[%clk 0:02:59]} 4. Bf4 {[%clk 0:03:00]}  Bg7 {[%clk 0:02:59]} 5. Nf3 {[%clk 0:03:00]}  O-O {[%clk 0:02:58]} 6. e3 {[%clk 0:03:01]}  c5 {[%clk 0:02:58]} 7. dxc5 {[%clk 0:03:01]}  Ne4 {[%clk 0:02:53]} 8. Rc1 {[%clk 0:03:00]}  Qa5 {[%clk 0:02:49]} 9. Be5 {[%clk 0:03:00]}  Bxe5 {[%clk 0:02:20]} 10. Nxe5 {[%clk 0:02:59]}  dxc4 {[%clk 0:01:58]} 11. Bxc4 {[%clk 0:02:52]}  Nxc5 {[%clk 0:01:57]} 12. O-O {[%clk 0:02:48]}  Be6 {[%clk 0:01:54]} 13. a3 {[%clk 0:02:46]}  Qd8 {[%clk 0:01:40]} 14. Nd5 {[%clk 0:02:44]}  Nbd7 {[%clk 0:01:25]} 15. Nf3 {[%clk 0:02:38]}  Bg4 {[%clk 0:01:18]} 16. Ba2 {[%clk 0:02:34]}  e6 {[%clk 0:01:13]} 17. Nc3 {[%clk 0:02:27]}  Bxf3 {[%clk 0:01:10]} 18. Qxf3 {[%clk 0:02:25]}  Rc8 {[%clk 0:01:06]} 19. Rcd1 {[%clk 0:02:23]}  Qf6 {[%clk 0:00:49]} 20. Qg3 {[%clk 0:02:21]}  Ne5 {[%clk 0:00:43]} 21. e4 {[%clk 0:02:02]}  Nc6 {[%clk 0:00:41]} 22. f4 {[%clk 0:01:56]}  Rfd8 {[%clk 0:00:40]} 23. e5 {[%clk 0:01:55]}  Qe7 {[%clk 0:00:40]} 24. b4 {[%clk 0:01:53]}  Nd7 {[%clk 0:00:39]} 25. Ne4 {[%clk 0:01:51]}  Nb6 {[%clk 0:00:38]} 26. Nf6+ {[%clk 0:01:50]}  Kg7 {[%clk 0:00:35]} 27. Qh4 {[%clk 0:01:47]}  h6 {[%clk 0:00:34]} 28. b5 {[%clk 0:01:44]}  Nd4 {[%clk 0:00:29]} 29. a4 {[%clk 0:01:33]}  Nxa4 {[%clk 0:00:27]} 30. Nh5+ {[%clk 0:01:29]}  Kf8 {[%clk 0:00:27]} 31. Nf6 {[%clk 0:01:29]}  Nf5 {[%clk 0:00:21]} 32. Qh3 {[%clk 0:01:22]}  Nc3 {[%clk 0:00:19]} 33. Rxd8+ {[%clk 0:01:20]}  Qxd8 {[%clk 0:00:19]} 34. g4 {[%clk 0:01:14]}  Qd4+ {[%clk 0:00:17]} 35. Kh1 {[%clk 0:01:14]}  Ne3 {[%clk 0:00:14]} 36. Qxh6+ {[%clk 0:01:12]}  Ke7 {[%clk 0:00:15]} 37. Qg5 {[%clk 0:00:54]}  Nxf1 {[%clk 0:00:15]} 38. Nd5+ {[%clk 0:00:54]}  Kf8 {[%clk 0:00:09]} 39. Qe7+ {[%clk 0:00:53]}  Kg8 {[%clk 0:00:08]} 40. Nf6+ {[%clk 0:00:45]}  Kg7 {[%clk 0:00:08]} 41. Bxe6 {[%clk 0:00:38]}  Rf8 {[%clk 0:00:08]} 42. Ne8+ {[%clk 0:00:33]}  Kg8 {[%clk 0:00:07]} 43. Nf6+ {[%clk 0:00:30]}  Kg7 {[%clk 0:00:08]} 44. Nh5+ {[%clk 0:00:22]}  Kh7 {[%clk 0:00:07]} 45. Nf6+ {[%clk 0:00:19]}  Kg7 {[%clk 0:00:06]} 1/2-1/2


[Site "https://www.chess.com"]

[Event "Titled Tuesday Blitz May 4 2021"]
[White "Guimaraes, Diogo Duarte"]
[Black "Lonoff, Marc"]
[WhiteFideId "2112450"]
[BlackFideId "2001349"]
[WhiteElo "2263"]
[BlackElo "2234"]
[Result "1-0"]
[Round "03"]
[TimeControl "180+1"]
[Date "2021.05.04"]
[WhiteClock "0:00:47"]
[BlackClock "0:00:08"]

1. e4 {[%clk 0:02:02]}  e6 {[%clk 0:03:00]} 2. d3 {[%clk 0:01:59]}  d5 {[%clk 0:02:56]} 3. Nd2 {[%clk 0:01:59]}  Nf6 {[%clk 0:02:54]} 4. g3 {[%clk 0:02:00]}  dxe4 {[%clk 0:02:53]} 5. dxe4 {[%clk 0:02:01]}  e5 {[%clk 0:02:52]} 6. Ngf3 {[%clk 0:02:00]}  Nc6 {[%clk 0:02:51]} 7. Bg2 {[%clk 0:02:00]}  Bc5 {[%clk 0:02:41]} 8. c3 {[%clk 0:01:55]}  Bg4 {[%clk 0:02:20]} 9. Qe2 {[%clk 0:01:54]}  Qd7 {[%clk 0:02:16]} 10. h3 {[%clk 0:01:51]}  Bh5 {[%clk 0:02:12]} 11. a4 {[%clk 0:01:41]}  a5 {[%clk 0:02:04]} 12. Qb5 {[%clk 0:01:38]}  b6 {[%clk 0:01:53]} 13. Nb3 {[%clk 0:01:35]}  O-O {[%clk 0:00:58]} 14. Nxc5 {[%clk 0:01:31]}  bxc5 {[%clk 0:00:57]} 15. Qxc5 {[%clk 0:01:19]}  Nxe4 {[%clk 0:00:52]} 16. Qe3 {[%clk 0:01:18]}  f5 {[%clk 0:00:43]} 17. g4 {[%clk 0:01:12]}  Rad8 {[%clk 0:00:36]} 18. O-O {[%clk 0:01:09]}  fxg4 {[%clk 0:00:32]} 19. hxg4 {[%clk 0:00:52]}  Qxg4 {[%clk 0:00:18]} 20. Nh2 {[%clk 0:00:49]}  Qh4 {[%clk 0:00:08]} 21. Qxe4 {[%clk 0:00:47]} 1-0


[Site "https://www.chess.com"]